fUSD/lending_fUSD_20240327
["ID","MTS","AMOUNT","RATE_DAILY","PERIOD"]
[320800800,1711561911422,-1200.4,0.00056164,120]
[320800801,1711561911432,-4994.03,0.00056164,120]
[320800802,1711561911442,-6977.94,0.00056164,120]
[320800803,1711561911451,-1042.58,0.00056164,120]
[320800804,1711561911461,-500.0,0.00056164,120]
[320800805,1711561911471,-818.62,0.00056164,120]
[320800806,1711561911481,-1312.03,0.00056164,120]
[320800807,1711561911491,-1814.79,0.00056164,120]
[320800808,1711561911501,-500.0,0.00056164,120]
[320800809,1711561911510,-1730.09,0.00056164,120]
[320800810,1711561911521,-3092.64,0.00056164,120]
[320800811,1711561911531,-858.06,0.00056164,120]
[320800812,1711561911541,-500.0,0.00056164,120]
[320800813,1711561911551,-3331.35,0.00056164,120]
[320800814,1711561911561,-1107.56,0.00056164,120]
[320800815,1711561911571,-500.0,0.00056164,120]
[320800816,1711561911581,-1629.06,0.00056164,120]
[320800817,1711561911591,-1926.96,0.00056164,120]
[320800818,1711561911601,-5998.21,0.00056164,120]
[320800819,1711561911611,-1276.61,0.00056164,120]
[320800820,1711561911621,-500.0,0.00056164,120]
[320800821,1711561911631,-978.47,0.00056164,120]
[320800822,1711561911640,-1204.74,0.00056164,120]
[320800823,1711561911650,-500.0,0.00056164,120]
[320800824,1711561911660,-500.0,0.00056164,120]
[320800825,1711561911670,-1112.11,0.00056164,120]
[320800826,1711561911680,-500.0,0.00056164,120]
[320800827,1711561911690,-5147.59,0.00056164,120]
[320800828,1711561911699,-500.0,0.00056164,120]
[320800829,1711561911709,-1278.89,0.00056164,120]
[320800830,1711561911719,-1257.45,0.00056164,120]
[320800831,1711561911728,-5642.74,0.00056164,120]
[320800832,1711561911738,-679.21,0.00056164,120]
[320800833,1711561911749,-150.19866873,0.00056167,68]
[320800834,1711561911758,-162.95493213,0.00056173,120]
[320800835,1711561911768,-150.0,0.00056175,14]
[320800836,1711561911777,-150.0,0.00056176,14]
[320800837,1711561911787,-1286.76228,0.0005618,78]
[320800838,1711561911797,-154.30437427,0.00056182,120]
[320800839,1711561911807,-150.0,0.00056182,14]
[320800840,1711561911817,-150.0,0.00056184,14]
[320800841,1711561911827,-150.0,0.00056193,14]
[320800842,1711561911837,-150.0,0.00056199,14]
[320800843,1711561911847,-150.0,0.000562,12]
[320800844,1711561911857,-150.0,0.00056201,14]
[320800845,1711561911868,-150.0,0.00056204,14]
[320800846,1711561911877,-150.0,0.00056206,14]
[320800847,1711561911887,-150.0,0.00056206,14]
[320800848,1711561911899,-150.0,0.00056209,14]
[320800849,1711561911909,-221.06395874,0.00056244,14]
[320800850,1711561911919,-9417.89501353,0.00056251,34]
[320800851,1711561911929,-1400.0,0.00056273,120]
[320800852,1711561911938,-150.0,0.00056273,30]
[320800853,1711561911948,-150.0,0.00056278,14]
[320800854,1711561911959,-150.0,0.00056278,14]
[320800855,1711561911968,-600.81863369,0.000563,120]
[320800856,1711561911978,-479.0,0.000563,46]
[320800857,1711561911988,-152.24,0.000563,120]
[320800858,1711561911997,-472.0,0.000563,35]
[320800859,1711561912007,-1000.0,0.000563,7]
[320800860,1711561912017,-150.0,0.000563,12]
[320800861,1711561912026,-150.0,0.000563,12]
[320800862,1711561912036,-150.0,0.000563,12]
[320800863,1711561912045,-150.0,0.00056308,14]
[320800864,1711561912054,-170.0,0.0005631,79]
[320800865,1711561912064,-500.0,0.00056317,120]
[320800866,1711561912073,-500.0,0.00056317,120]
[320800867,1711561912082,-150.0,0.00056322,14]
[320800868,1711561912091,-150.0,0.0005633,14]
[320800869,1711561912100,-150.0,0.00056333,14]
[320800870,1711561912111,-150.0,0.00056341,120]
[320800871,1711561912120,-150.0,0.00056355,14]
[320800872,1711561912129,-500.0,0.00056359,30]
[320800873,1711561912138,-157.09370442,0.00056368,120]
[320800874,1711561912147,-5171.4074383,0.00056399,2]
[320800875,1711561912342,-2302.031903,0.0005642,30]
[320800876,1711561912352,-2302.031903,0.0005642,30]
[320800877,1711561912364,-2302.031903,0.0005642,30]
[320800878,1711561912373,-3917.009776,0.0005642,30]
[320800879,1711561912383,-647.989933,0.0005642,30]
[320800880,1711561912392,-1156.819569,0.0005642,30]
[320800881,1711561912402,-150.0,0.00056425,120]
[320800882,1711561912411,-561.01668654,0.00056437,90]
[320800883,1711561912422,-500.0,0.00056438,120]
[320800884,1711561912431,-526.0,0.00056438,120]
[320800885,1711561912440,-500.0,0.00056438,120]
[320800886,1711561912450,-500.0,0.00056438,120]
[320800887,1711561912460,-500.0,0.00056438,120]
[320800888,1711561912469,-500.0,0.00056438,120]
[320800889,1711561912481,-631.01,0.00056438,120]
[320800890,1711561912492,-500.0,0.00056438,120]
[320800891,1711561912503,-500.0,0.00056438,120]
[320800892,1711561912514,-530.38,0.00056438,120]
[320800893,1711561912525,-500.0,0.00056438,120]
[320800894,1711561912536,-500.0,0.00056438,120]
[320800895,1711561912547,-500.0,0.00056438,120]
[320800896,1711561912558,-500.0,0.00056438,120]
[320800897,1711561912570,-500.0,0.00056438,120]
[320800898,1711561912582,-517.87,0.00056438,120]
[320800899,1711561912593,-736.48,0.00056438,120]
[320800900,1711561912603,-500.0,0.00056438,120]
[320800901,1711561912615,-500.0,0.00056438,120]
[320800902,1711561912626,-500.0,0.00056438,120]
[320800903,1711561912636,-500.0,0.00056438,120]
[320800904,1711561912646,-1149.15,0.00056438,120]
[320800905,1711561912657,-683.71,0.00056438,120]
[320800906,1711561912667,-588.63,0.00056438,120]
[320800907,1711561912677,-1653.05,0.00056438,120]
[320800908,1711561912687,-721.85,0.00056438,120]
[320800909,1711561912697,-758.1,0.00056438,120]
[320800910,1711561912707,-751.34,0.00056438,120]
[320800911,1711561912717,-500.0,0.00056438,120]
[320800912,1711561912727,-1106.66,0.00056438,120]
[320800913,1711561912738,-500.0,0.00056438,120]
[320800914,1711561912749,-667.72,0.00056438,120]
[320800915,1711561912760,-525.52,0.00056438,120]
[320800916,1711561912770,-546.53,0.00056438,120]
[320800917,1711561912780,-500.0,0.00056438,120]
[320800918,1711561912791,-1650.28,0.00056438,120]
[320800919,1711561912802,-1208.64,0.00056438,120]
[320800920,1711561912813,-500.0,0.00056438,120]
[320800921,1711561912823,-246.06193982,0.00056438,120]
[320800922,1711561912836,-1675.07,0.00056438,120]
[320800923,1711561912848,-500.0,0.00056438,120]
[320800924,1711561912860,-500.0,0.00056438,60]
[320800925,1711561912871,-875.05,0.00056438,120]
[320800926,1711561912881,-500.0,0.00056438,120]
[320800927,1711561912893,-500.0,0.00056438,120]
[320800928,1711561912905,-896.37,0.00056438,120]
[320800929,1711561912916,-526.04,0.00056438,120]
[320800930,1711561912926,-266.69308183,0.00056438,120]
[320800931,1711561912936,-774.53,0.00056438,120]
[320800932,1711561912948,-623.96,0.00056438,120]
[320800933,1711561912962,-1500.57,0.00056438,120]
[320800934,1711561912973,-500.0,0.00056438,120]
[320800935,1711561912985,-1293.46,0.00056438,120]
[320800936,1711561912997,-663.1,0.00056438,120]
[320800937,1711561913008,-500.0,0.00056438,120]
[320800938,1711561913019,-500.0,0.00056438,120]
[320800939,1711561913029,-591.57,0.00056438,120]
[320800940,1711561913040,-540.2,0.00056438,120]
[320800941,1711561913051,-612.02760003,0.00056438,120]
[320800942,1711561913062,-500.0,0.00056438,120]
[320800943,1711561913075,-826.04,0.00056438,120]
[320800944,1711561913087,-802.7,0.00056438,120]
[320800945,1711561913098,-792.47,0.00056438,120]
[320800946,1711561913109,-551.8,0.00056438,120]
[320800947,1711561913121,-500.0,0.00056438,120]
[320800948,1711561913133,-507.03,0.00056438,120]
[320800949,1711561913144,-814.62,0.00056438,120]
[320800950,1711561913154,-624.54615718,0.00056438,120]
[320800951,1711561913163,-519.12,0.00056438,120]
[320800952,1711561913173,-500.0,0.00056438,120]
[320800953,1711561913183,-553.94,0.00056438,120]
[320800954,1711561913193,-1363.26,0.00056438,120]
[320800955,1711561913203,-681.15,0.00056438,120]
[320800956,1711561913214,-1247.0,0.00056438,120]
[320800957,1711561913225,-828.0,0.00056438,120]
[320800958,1711561913237,-907.95,0.00056438,120]
[320800959,1711561913248,-691.03,0.00056438,120]
[320800960,1711561913260,-500.0,0.00056438,120]
[320800961,1711561913271,-500.0,0.00056438,120]
[320800962,1711561913285,-1943.45,0.00056438,120]
[320800963,1711561913296,-1363.72,0.00056438,120]
[320800964,1711561913308,-500.0,0.00056438,120]
[320800965,1711561913318,-500.0,0.00056438,120]
[320800966,1711561913330,-500.0,0.00056438,120]
[320800967,1711561913342,-1264.66,0.00056438,120]
[320800968,1711561913353,-518.11,0.00056438,120]
[320800969,1711561913366,-500.0,0.00056438,120]
[320800970,1711561913377,-785.6,0.00056438,120]
[320800971,1711561913389,-500.0,0.00056438,120]
[320800972,1711561913400,-500.0,0.00056438,120]
[320800973,1711561913411,-533.96,0.00056438,120]
[320800974,1711561913422,-610.76,0.00056438,120]
[320800975,1711561913434,-500.0,0.00056438,120]
[320800976,1711561913445,-619.35,0.00056438,120]
[320800977,1711561913456,-601.27,0.00056438,120]
[320800978,1711561913467,-500.0,0.00056438,120]
[320800979,1711561913479,-723.32,0.00056438,120]
[320800980,1711561913491,-658.94,0.00056438,30]
[320800981,1711561913502,-604.53,0.00056438,120]
[320800982,1711561913512,-500.0,0.00056438,120]
[320800983,1711561913524,-627.6,0.00056438,120]
[320800984,1711561913536,-541.49,0.00056438,120]
[320800985,1711561913550,-525.41,0.00056438,120]
[320800986,1711561913561,-500.0,0.00056438,120]
[320800987,1711561913573,-500.0,0.00056438,120]
[320800988,1711561913586,-1259.13,0.00056438,120]
[320800989,1711561913598,-500.0,0.00056438,120]
[320800990,1711561913611,-961.87,0.00056438,120]
[320800991,1711561913622,-1285.86,0.00056438,120]
[320800992,1711561913633,-1118.41,0.00056438,120]
[320800993,1711561913644,-500.0,0.00056438,120]
[320800994,1711561913655,-653.33,0.00056438,120]
[320800995,1711561913666,-500.0,0.00056438,120]
[320800996,1711561913676,-515.61,0.00056438,120]
[320800997,1711561913687,-500.0,0.00056438,120]
[320800998,1711561913698,-881.34,0.00056438,120]
[320800999,1711561913710,-594.96,0.00056438,120]
[320801000,1711561913721,-500.0,0.00056438,120]
[320801001,1711561913732,-635.55,0.00056438,120]
[320801002,1711561913743,-500.0,0.00056438,120]
[320801003,1711561913754,-500.0,0.00056438,120]
[320801004,1711561913765,-500.0,0.00056438,120]
[320801005,1711561913777,-569.07,0.00056438,120]
[320801006,1711561913787,-513.81,0.00056438,120]
[320801007,1711561913798,-885.2,0.00056438,120]
[320801008,1711561913808,-507.05,0.00056438,120]
[320801009,1711561913820,-345.9,0.00056438,120]
[320801010,1711561913831,-500.0,0.00056438,120]
[320801011,1711561913841,-969.37,0.00056438,120]
[320801012,1711561913853,-500.0,0.00056438,120]
[320801013,1711561913868,-311.35290151,0.00056438,120]
[320801014,1711561913879,-511.00565987,0.00056438,120]
[320801015,1711561913891,-712.96,0.00056438,120]
[320801016,1711561913903,-500.0,0.00056438,120]
[320801017,1711561913914,-500.0,0.00056438,120]
[320801018,1711561913924,-543.06,0.00056438,120]
[320801019,1711561913935,-607.67,0.00056438,120]
[320801020,1711561913947,-500.0,0.00056438,120]
[320801021,1711561913958,-500.0,0.00056438,120]
[320801022,1711561913968,-631.34,0.00056438,120]
[320801023,1711561913979,-500.0,0.00056438,120]
[320801024,1711561913989,-572.09,0.00056438,120]
[320801025,1711561913999,-633.56,0.00056438,120]
[320801026,1711561914009,-309.98415415,0.00056438,120]
[320801027,1711561914020,-1276.08,0.00056438,120]
[320801028,1711561914031,-743.04,0.00056438,120]
[320801029,1711561914042,-994.38,0.00056438,120]
[320801030,1711561914052,-1464.37,0.00056438,120]
[320801031,1711561914062,-1308.17,0.00056438,120]
[320801032,1711561914073,-153.20894707,0.00056438,120]
[320801033,1711561914084,-500.0,0.00056438,120]
[320801034,1711561914095,-500.0,0.00056438,120]
[320801035,1711561914105,-1966.83,0.00056438,120]
[320801036,1711561914117,-882.23,0.00056438,120]
[320801037,1711561914127,-1167.58,0.00056438,120]
[320801038,1711561914137,-500.0,0.00056438,120]
[320801039,1711561914147,-939.99,0.00056438,120]
[320801040,1711561914157,-1680.42,0.00056438,120]
[320801041,1711561914168,-654.45,0.00056438,120]
[320801042,1711561914178,-1090.78,0.00056438,120]
[320801043,1711561914188,-5693.99,0.00056438,120]
[320801044,1711561914199,-2767.8,0.00056438,120]
[320801045,1711561914209,-631.11,0.00056438,120]
[320801046,1711561914219,-500.0,0.00056438,120]
[320801047,1711561914230,-638.94,0.00056438,120]
[320801048,1711561914240,-1880.06,0.00056438,120]
[320801049,1711561914251,-597.69,0.00056438,120]
[320801050,1711561914261,-3576.66,0.00056438,120]
[320801051,1711561914271,-1154.81,0.00056438,120]
[320801052,1711561914282,-11680.99,0.00056438,120]
[320801053,1711561914293,-500.0,0.00056438,120]
[320801054,1711561914304,-1513.74,0.00056438,120]
[320801055,1711561914315,-500.0,0.00056438,120]
[320801056,1711561914326,-500.0,0.00056438,120]
[320801057,1711561914336,-4891.01,0.00056438,120]
[320801058,1711561914346,-500.0,0.00056438,120]
[320801059,1711561914357,-820.32,0.00056438,120]
[320801060,1711561914370,-2266.19,0.00056438,120]
[320801061,1711561914381,-4319.88,0.00056438,120]
[320801062,1711561914392,-638.01,0.00056438,120]
[320801063,1711561914402,-1948.43,0.00056438,120]
[320801064,1711561914412,-594.89,0.00056438,120]
[320801065,1711561914422,-58191.63,0.00056438,120]
[320801066,1711561914432,-500.0,0.00056438,120]
[320801067,1711561914441,-4872.06,0.00056438,120]
[320801068,1711561914452,-500.0,0.00056438,120]
[320801069,1711561914462,-916.42,0.00056438,120]
[320801070,1711561914472,-25819.15,0.00056438,120]
[320801071,1711561914482,-672.12,0.00056438,120]
[320801072,1711561914492,-500.0,0.00056438,120]
[320801073,1711561914502,-500.0,0.00056438,120]
[320801074,1711561914512,-2822.64,0.00056438,120]
[320801075,1711561914523,-5739.01,0.00056438,120]
[320801076,1711561914534,-1773.91,0.00056438,120]
[320801077,1711561914544,-1599.36,0.00056438,120]
[320801078,1711561914559,-7896.21,0.00056438,120]
[320801079,1711561914569,-580.5,0.00056438,120]
[320801080,1711561914579,-500.0,0.00056438,120]
[320801081,1711561914589,-702.31,0.00056438,120]
[320801082,1711561914599,-4077.6,0.00056438,120]
[320801083,1711561914609,-962.02,0.00056438,120]
[320801084,1711561914621,-1910.86,0.00056438,120]
[320801085,1711561914631,-993.68,0.00056438,120]
[320801086,1711561914641,-1981.61,0.00056438,120]
[320801087,1711561914652,-1310.9,0.00056438,120]
[320801088,1711561914662,-5861.79,0.00056438,120]
[320801089,1711561914672,-861.74,0.00056438,120]
[320801090,1711561914682,-3868.28,0.00056438,120]
[320801091,1711561914692,-4602.46,0.00056438,120]
[320801092,1711561914702,-500.0,0.00056438,120]
[320801093,1711561914712,-2663.41,0.00056438,120]
[320801094,1711561914723,-7201.79,0.00056438,120]
[320801095,1711561914733,-1041.92,0.00056438,120]
[320801096,1711561914743,-2285.5,0.00056438,120]
[320801097,1711561914754,-500.0,0.00056438,120]
[320801098,1711561914764,-2054.16,0.00056438,120]
[320801099,1711561914774,-500.0,0.00056438,120]
[320801100,1711561914783,-1431.94,0.00056438,120]
[320801101,1711561914794,-500.0,0.00056438,120]
[320801102,1711561914804,-18909.02,0.00056438,120]
[320801103,1711561914815,-1528.43,0.00056438,120]
[320801104,1711561914826,-1715.09,0.00056438,120]
[320801105,1711561914836,-543.42,0.00056438,120]
[320801106,1711561914847,-836.18,0.00056438,120]
[320801107,1711561914857,-2529.3,0.00056438,120]
[320801108,1711561914871,-1204.05,0.00056438,120]
[320801109,1711561914882,-1890.07,0.00056438,120]
[320801110,1711561914894,-500.0,0.00056438,120]
[320801111,1711561914906,-882.15,0.00056438,120]
[320801112,1711561914916,-1395.77,0.00056438,120]
[320801113,1711561914926,-500.0,0.00056438,120]
[320801114,1711561914936,-500.0,0.00056438,120]
[320801115,1711561914946,-22066.4,0.00056438,120]
[320801116,1711561914957,-9133.29,0.00056438,120]
[320801117,1711561914967,-3276.54,0.00056438,120]
[320801118,1711561914978,-3779.21,0.00056438,120]
[320801119,1711561914988,-500.0,0.00056438,120]
[320801120,1711561914999,-505.39,0.00056438,120]
[320801121,1711561915008,-1407.53,0.00056438,120]
[320801122,1711561915019,-1780.21,0.00056438,120]
[320801123,1711561915030,-744.71,0.00056438,120]
[320801124,1711561915040,-3375.62,0.00056438,120]
[320801125,1711561915050,-500.0,0.00056438,120]
[320801126,1711561915061,-1245.33,0.00056438,120]
[320801127,1711561915071,-825.22,0.00056438,120]
[320801128,1711561915081,-500.0,0.00056438,120]
[320801129,1711561915092,-2499.0,0.00056438,120]
[320801130,1711561915102,-1139.82,0.00056438,120]
[320801131,1711561915111,-3390.46,0.00056438,120]
[320801132,1711561915121,-209.27107102,0.00056438,120]
[320801133,1711561915131,-2297.82,0.00056438,120]
[320801134,1711561915142,-36215.98,0.00056438,120]
[320801135,1711561915152,-2115.9,0.00056438,120]
[320801136,1711561915162,-504.0,0.00056438,120]
[320801137,1711561915172,-500.0,0.00056438,120]
[320801138,1711561915182,-635.43,0.00056438,120]
[320801139,1711561915192,-509.72,0.00056438,7]
[320801140,1711561915203,-1985.21,0.00056438,120]
[320801141,1711561915214,-4093.44,0.00056438,120]
[320801142,1711561915225,-598.33,0.00056438,120]
[320801143,1711561915236,-3703.02,0.00056438,120]
[320801144,1711561915247,-3170.6,0.00056438,120]
[320801145,1711561915258,-4518.78,0.00056438,120]
[320801146,1711561915269,-816.34,0.00056438,120]
[320801147,1711561915281,-550.58,0.00056438,120]
[320801148,1711561915292,-5597.96,0.00056438,120]
[320801149,1711561915304,-500.0,0.00056438,120]
[320801150,1711561915315,-3365.42,0.00056438,120]
[320801151,1711561915326,-500.0,0.00056438,2]
[320801152,1711561915338,-1850.45,0.00056438,120]
[320801153,1711561915349,-500.0,0.00056438,120]
[320801154,1711561915361,-543.16,0.00056438,120]
[320801155,1711561915378,-1437.25,0.00056438,120]
[320801156,1711561915392,-500.0,0.00056438,120]
[320801157,1711561915403,-13261.96,0.00056438,120]
[320801158,1711561915414,-2460.7,0.00056438,120]
[320801159,1711561915425,-1655.41,0.00056438,120]
[320801160,1711561915436,-688.55,0.00056438,120]
[320801161,1711561915448,-1308.22,0.00056438,120]
[320801162,1711561915460,-500.0,0.00056438,120]
[320801163,1711561915472,-500.0,0.00056438,120]
[320801164,1711561915484,-606.26,0.00056438,120]
[320801165,1711561915496,-3292.56,0.00056438,120]
[320801166,1711561915507,-4771.81,0.00056438,120]
[320801167,1711561915520,-1591.58,0.00056438,120]
[320801168,1711561915715,-2911.12,0.00056438,120]
[320801169,1711561915726,-8314.67,0.00056438,21]
[320801170,1711561915737,-1246.89,0.00056438,120]
[320801171,1711561915747,-515.6,0.00056438,120]
[320801172,1711561915757,-1689.16,0.00056438,120]
[320801173,1711561915768,-500.0,0.00056438,120]
[320801174,1711561915778,-770.25,0.00056438,120]
[320801175,1711561915789,-8380.88,0.00056438,120]
[320801176,1711561915799,-614.46,0.00056438,120]
[320801177,1711561915809,-2989.36,0.00056438,120]
[320801178,1711561915819,-10959.62,0.00056438,120]
[320801179,1711561915830,-12744.26,0.00056438,120]
[320801180,1711561915840,-521.47,0.00056438,120]
[320801181,1711561915851,-2645.1,0.00056438,120]
[320801182,1711561915862,-758.38,0.00056438,120]
[320801183,1711561915875,-500.0,0.00056438,120]
[320801184,1711561915885,-11517.5,0.00056438,120]
[320801185,1711561915896,-2628.59,0.00056438,120]
[320801186,1711561915907,-1981.45,0.00056438,120]
[320801187,1711561915918,-500.0,0.00056438,120]
[320801188,1711561915929,-2618.9,0.00056438,120]
[320801189,1711561915940,-500.0,0.00056438,120]
[320801190,1711561915950,-500.0,0.00056438,120]
[320801191,1711561915960,-2635.65,0.00056438,120]
[320801192,1711561915970,-2440.72,0.00056438,120]
[320801193,1711561915981,-1641.2,0.00056438,120]
[320801194,1711561915991,-1422.66,0.00056438,120]
[320801195,1711561916001,-1953.26,0.00056438,120]
[320801196,1711561916012,-680.59,0.00056438,120]
[320801197,1711561916023,-500.0,0.00056438,120]
[320801198,1711561916033,-851.11,0.00056438,120]
[320801199,1711561916043,-516.23,0.00056438,120]
[320801200,1711561916053,-4524.02,0.00056438,120]
[320801201,1711561916063,-833.36,0.00056438,120]
[320801202,1711561916073,-500.0,0.00056438,120]
[320801203,1711561916084,-2147.51,0.00056438,120]
[320801204,1711561916094,-632.90281533,0.00056438,120]
[320801205,1711561916104,-1826.97,0.00056438,120]
[320801206,1711561916116,-1200.4,0.00056438,120]
[320801207,1711561916126,-4994.03,0.00056438,120]
[320801208,1711561916136,-6977.94,0.00056438,120]
[320801209,1711561916145,-1042.58,0.00056438,120]
[320801210,1711561916155,-818.62,0.00056438,120]
[320801211,1711561916165,-1312.03,0.00056438,120]
[320801212,1711561916176,-1814.79,0.00056438,120]
[320801213,1711561916186,-500.0,0.00056438,120]
[320801214,1711561916196,-1730.09,0.00056438,120]
[320801215,1711561916206,-3092.64,0.00056438,120]
[320801216,1711561916216,-858.06,0.00056438,120]
[320801217,1711561916226,-500.0,0.00056438,120]
[320801218,1711561916237,-3331.35,0.00056438,120]
[320801219,1711561916247,-1107.56,0.00056438,120]
[320801220,1711561916257,-500.0,0.00056438,120]
[320801221,1711561916267,-1629.06,0.00056438,120]
[320801222,1711561916277,-1926.96,0.00056438,120]
[320801223,1711561916287,-5998.21,0.00056438,120]
[320801224,1711561916297,-1276.61,0.00056438,120]
[320801225,1711561916306,-500.0,0.00056438,120]
[320801226,1711561916316,-978.47,0.00056438,120]
[320801227,1711561916326,-1204.74,0.00056438,120]
[320801228,1711561916336,-500.0,0.00056438,120]
[320801229,1711561916346,-500.0,0.00056438,120]
[320801230,1711561916356,-1112.11,0.00056438,120]
[320801231,1711561916367,-500.0,0.00056438,120]
[320801232,1711561916377,-5147.59,0.00056438,120]
[320801233,1711561916387,-500.0,0.00056438,120]
[320801234,1711561916398,-1278.89,0.00056438,120]
[320801235,1711561916407,-1257.45,0.00056438,120]
[320801236,1711561916417,-5642.74,0.00056438,120]
[320801237,1711561916427,-679.21,0.00056438,120]
[320801238,1711561916437,-314.065412,0.00056448,111]
[320801239,1711561916447,-315.3958168,0.00056479,2]
[320801240,1711561916457,-453.098124,0.00056498,110]
[320801241,1711561916466,-3401.8,0.00056523,120]
[320801242,1711561916476,-155.61103005,0.00056525,120]
[320801243,1711561916486,-150.50617537,0.00056543,120]
[320801244,1711561916496,-150.19866873,0.00056585,69]
[320801245,1711561916507,-157.20206273,0.0005659,120]
[320801246,1711561916516,-500.0,0.0005659,120]
[320801247,1711561916526,-500.0,0.0005659,120]
[320801248,1711561916537,-150.0,0.000566,12]
[320801249,1711561916548,-166.56049651,0.00056603,120]
[320801250,1711561916558,-157.09370442,0.00056625,120]
[320801251,1711561916569,-318.86786748,0.00056642,120]
[320801252,1711561916579,-156.920962,0.00056685,120]
[320801253,1711561916589,-152.52,0.000567,8]
[320801254,1711561916600,-152.52,0.000567,8]
[320801255,1711561916610,-152.52,0.000567,8]
[320801256,1711561916621,-152.52,0.000567,8]
[320801257,1711561916631,-152.52,0.000567,8]
[320801258,1711561916641,-152.52,0.000567,8]
[320801259,1711561916653,-152.52,0.000567,8]
[320801260,1711561916663,-152.52,0.000567,8]
[320801261,1711561916673,-152.52,0.000567,8]
[320801262,1711561916684,-152.52,0.000567,8]
[320801263,1711561916694,-2146.54,0.000567,8]
[320801264,1711561916703,-2146.54,0.000567,8]
[320801265,1711561916713,-2146.54,0.000567,8]
[320801266,1711561916724,-2146.54,0.000567,8]
[320801267,1711561916735,-2146.54,0.000567,8]
[320801268,1711561916745,-2146.54,0.000567,8]
[320801269,1711561916755,-2146.54,0.000567,8]
[320801270,1711561916766,-2146.54,0.000567,8]
[320801271,1711561916776,-2146.54,0.000567,8]
[320801272,1711561916787,-2146.54,0.000567,8]
[320801273,1711561916797,-2146.54,0.000567,8]
[320801274,1711561916807,-2146.54,0.000567,8]
[320801275,1711561916819,-2146.54,0.000567,8]
[320801276,1711561916830,-2146.54,0.000567,8]
[320801277,1711561916840,-2146.54,0.000567,8]
[320801278,1711561916851,-2146.54,0.000567,8]
[320801279,1711561916864,-2146.54,0.000567,8]
[320801280,1711561916875,-2146.54,0.000567,8]
[320801281,1711561916886,-2146.54,0.000567,8]
[320801282,1711561916898,-2146.54,0.000567,8]
[320801283,1711561916911,-150.0,0.000567,12]
[320801284,1711561916921,-157.18743014,0.00056707,120]
[320801285,1711561916932,-1000.0,0.00056711,90]
[320801286,1711561916942,-500.0,0.00056712,120]
[320801287,1711561916952,-526.0,0.00056712,120]
[320801288,1711561916962,-500.0,0.00056712,120]
[320801289,1711561916973,-500.0,0.00056712,120]
[320801290,1711561916984,-500.0,0.00056712,120]
[320801291,1711561916994,-500.0,0.00056712,120]
[320801292,1711561917004,-631.01,0.00056712,120]
[320801293,1711561917015,-500.0,0.00056712,120]
[320801294,1711561917026,-500.0,0.00056712,120]
[320801295,1711561917036,-530.38,0.00056712,120]
[320801296,1711561917047,-500.0,0.00056712,120]
[320801297,1711561917059,-500.0,0.00056712,120]
[320801298,1711561917070,-500.0,0.00056712,120]
[320801299,1711561917081,-500.0,0.00056712,120]